fUSD/lending_fUSD_20241108
["ID","MTS","AMOUNT","RATE_DAILY","PERIOD"]
[341610300,1731027056058,-500.0,0.00027671,2]
[341610301,1731027056074,-500.0,0.00027671,2]
[341610302,1731027056083,-500.0,0.00027671,2]
[341610303,1731027056093,-500.0,0.00027671,2]
[341610304,1731027056103,-1259.06,0.00027671,2]
[341610305,1731027056112,-769.95,0.00027671,2]
[341610306,1731027056121,-150.0,0.00027671,2]
[341610307,1731027056129,-500.0,0.00027671,2]
[341610308,1731027056138,-679.59,0.00027671,2]
[341610309,1731027056147,-501.13,0.00027671,2]
[341610310,1731027056157,-878.0,0.00027671,2]
[341610311,1731027056168,-675.14,0.00027671,2]
[341610312,1731027056177,-151.0,0.00027671,7]
[341610313,1731027056187,-300.0,0.00027671,2]
[341610314,1731027056196,-359.46661197,0.00027671,2]
[341610315,1731027056205,-1779.54,0.00027671,2]
[341610316,1731027056214,-500.0,0.00027671,2]
[341610317,1731027056223,-1135.26,0.00027671,2]
[341610318,1731027056233,-593.67,0.00027671,2]
[341610319,1731027056243,-245.861104,0.00027671,7]
[341610320,1731027056252,-500.0,0.00027671,2]
[341610321,1731027056261,-709.94,0.00027671,2]
[341610322,1731027056271,-500.0,0.00027671,2]
[341610323,1731027056280,-500.0,0.00027671,2]
[341610324,1731027056289,-155.73172689,0.00027671,2]
[341610325,1731027056299,-245.861104,0.00027671,7]
[341610326,1731027056308,-419.93991019,0.00027671,2]
[341610327,1731027056321,-500.0,0.00027671,2]
[341610328,1731027056331,-1218.99,0.00027671,2]
[341610329,1731027056341,-546.9,0.00027671,2]
[341610330,1731027056350,-681.64,0.00027671,2]
[341610331,1731027056360,-500.0,0.00027671,2]
[341610332,1731027056369,-1268.95,0.00027671,2]
[341610333,1731027056378,-500.0,0.00027671,2]
[341610334,1731027056387,-1989.86,0.00027671,2]
[341610335,1731027056397,-500.0,0.00027671,2]
[341610336,1731027056406,-500.0,0.00027671,2]
[341610337,1731027056416,-558.93,0.00027671,2]
[341610338,1731027056425,-500.0,0.00027671,2]
[341610339,1731027056435,-500.0,0.00027671,2]
[341610340,1731027056444,-322.49134695,0.00027673,5]
[341610341,1731027056454,-171.30208726,0.00027673,5]
[341610342,1731027056463,-501.58054155,0.00027673,5]
[341610343,1731027056472,-1009.5816001,0.00027679,2]
[341610344,1731027056481,-4115.6796447,0.00027679,2]
[341610345,1731027056490,-17125.90126337,0.00027698,2]
[341610346,1731027056918,-529.0,0.00027671,2]
[341610347,1731027056928,-3422.561472,0.00027698,2]
[341610348,1731027056943,-627.47998371,0.00027698,2]
[341610349,1731027056969,-1171.95938092,0.00027698,2]
[341610350,1731027056978,-1119.2386,0.00027698,2]
[341610351,1731027056987,-151.0,0.00027698,7]
[341610352,1731027056996,-151.0,0.00027698,7]
[341610353,1731027057006,-439.717698,0.00027698,7]
[341610354,1731027057015,-439.717698,0.00027698,7]
[341610355,1731027057024,-151.0,0.00027698,7]
[341610356,1731027057034,-4127.15,0.00027698,2]
[341610357,1731027057044,-4127.15,0.00027698,2]
[341610358,1731027057054,-4127.15,0.00027698,2]
[341610359,1731027057063,-3782.83002698,0.00027698,2]
[341610360,1731027057088,-344.31997302,0.00027698,2]
[341610361,1731027057098,-4127.15,0.00027698,2]
[341610362,1731027057107,-4127.15,0.00027698,2]
[341610363,1731027057116,-4127.15,0.00027698,2]
[341610364,1731027057124,-4127.15,0.00027698,2]
[341610365,1731027057134,-4127.15,0.00027698,2]
[341610366,1731027057143,-4127.15,0.00027698,2]
[341610367,1731027057212,-4127.15,0.00027698,2]
[341610368,1731027057221,-4127.15,0.00027698,2]
[341610369,1731027057230,-4127.15,0.00027698,2]
[341610370,1731027057239,-4127.15,0.00027698,2]
[341610371,1731027057248,-4127.15,0.00027698,2]
[341610372,1731027057257,-4127.15,0.00027698,2]
[341610373,1731027057266,-4127.15,0.00027698,2]
[341610374,1731027057275,-4127.15,0.00027698,2]
[341610375,1731027057284,-4127.15,0.00027698,2]
[341610376,1731027057293,-4127.15,0.00027698,2]
[341610377,1731027057301,-4127.15,0.00027698,2]
[341610378,1731027057310,-4127.15,0.00027698,2]
[341610379,1731027057327,-3605.28118323,0.00027698,2]
[341610380,1731027057426,-521.86881677,0.00027698,2]
[341610381,1731027057435,-4127.21743861,0.00027698,2]
[341610382,1731027057444,-151.0,0.00027698,7]
[341610383,1731027057454,-151.0,0.00027698,7]
[341610384,1731027057463,-151.0,0.00027698,7]
[341610385,1731027057472,-151.0,0.00027698,7]
[341610386,1731027057482,-151.0,0.00027698,7]
[341610387,1731027057491,-151.0,0.00027698,7]
[341610388,1731027057500,-151.0,0.00027698,7]
[341610389,1731027057509,-151.0,0.00027698,7]
[341610390,1731027057518,-151.0,0.00027698,7]
[341610391,1731027057527,-704.50279,0.00027698,7]
[341610392,1731027057536,-704.50279,0.00027698,7]
[341610393,1731027057546,-220.543933,0.00027698,7]
[341610394,1731027057555,-220.543933,0.00027698,7]
[341610395,1731027057566,-151.0,0.00027698,7]
[341610396,1731027057576,-151.0,0.00027698,7]
[341610397,1731027057585,-245.861104,0.00027698,7]
[341610398,1731027057594,-245.861104,0.00027698,7]
[341610399,1731027057604,-1178.60924658,0.000277,10]
[341610400,1731027057615,-2021.39075342,0.000277,10]
[341610401,1731027057625,-363.0,0.000277,2]
[341610402,1731027057634,-1271.0803,0.000277,2]
[341610403,1731027057642,-1000.0,0.000277,2]
[341610404,1731027057652,-2110.4165,0.000277,2]
[341610405,1731027057666,-229.0,0.000277,2]
[341610406,1731027057675,-858.1721,0.000277,2]
[341610407,1731027057684,-247.7,0.00027701,2]
[341610408,1731027057693,-4252.26885686,0.00027718,2]
[341610409,1731027057703,-150.110806,0.00027748,4]
[341610410,1731027057712,-151.0,0.0002775,7]
[341610411,1731027057721,-1401.853,0.0002775,2]
[341610412,1731027057730,-452.0,0.0002775,2]
[341610413,1731027057740,-150.0,0.0002775,2]
[341610414,1731027057749,-1989.0,0.0002775,2]
[341610415,1731027057758,-559.0,0.0002775,2]
[341610416,1731027057767,-1920.0,0.0002775,2]
[341610417,1731027057776,-1258.0,0.0002775,2]
[341610418,1731027057785,-920.0,0.0002775,2]
[341610419,1731027057794,-813.0,0.0002775,2]
[341610420,1731027057803,-2908.0,0.0002775,2]
[341610421,1731027057812,-3461.0,0.0002775,2]
[341610422,1731027057821,-150.0,0.0002775,2]
[341610423,1731027057831,-5922.0,0.0002775,2]
[341610424,1731027057840,-1157.0,0.0002775,2]
[341610425,1731027057849,-13614.0,0.0002775,2]
[341610426,1731027057858,-150.0,0.0002775,2]
[341610427,1731027057867,-1090.0,0.0002775,2]
[341610428,1731027057876,-155.0,0.0002775,2]
[341610429,1731027057885,-151.0,0.00027798,7]
[341610430,1731027057894,-151.0,0.00027798,7]
[341610431,1731027057903,-152.236,0.000278,7]
[341610432,1731027057911,-4000.0,0.000278,10]
[341610433,1731027057920,-500.0,0.00027808,7]
[341610434,1731027057929,-500.0,0.00027808,7]
[341610435,1731027057938,-500.0,0.00027808,7]
[341610436,1731027057947,-157.525109,0.00027812,7]
[341610437,1731027057956,-151.0,0.00027812,7]
[341610438,1731027057964,-186.137722,0.00027812,7]
[341610439,1731027057973,-151.0,0.00027812,7]
[341610440,1731027057982,-152.0,0.00027828,6]
[341610441,1731027057991,-159.99029,0.0002784,30]
[341610442,1731027058000,-1770.26274186,0.00027844,2]
[341610443,1731027058010,-764.91853816,0.00027844,2]
[341610444,1731027058019,-150.110806,0.00027848,3]
[341610445,1731027058026,-361.61461302,0.00027855,2]
[341610446,1731027058035,-151.0,0.00027856,7]
[341610447,1731027058044,-151.0,0.00027856,7]
[341610448,1731027058053,-151.0,0.00027856,7]
[341610449,1731027058062,-1618.98947447,0.0002787,2]
[341610450,1731027058073,-500.0,0.0002787,2]
[341610451,1731027058082,-1000.0,0.0002787,2]
[341610452,1731027058092,-500.0,0.0002787,2]
[341610453,1731027058101,-1000.0,0.0002787,2]
[341610454,1731027058111,-500.0,0.0002787,2]
[341610455,1731027058120,-584.07720427,0.000279,7]
[341610456,1731027131363,155.13,0.00015342,2]
[341610464,1731028038141,-450.0,0.00021,2]
[341610465,1731028038161,-595.88279579,0.00022635,2]
[341610466,1731028038181,-500.0,0.00023,2]
[341610467,1731028038201,-1077.56,0.00023556,2]
[341610468,1731028038222,-1162.12448162,0.00024743,2]
[341610469,1731028165089,-608.67551838,0.00024743,2]
[341610471,1731028181290,1569.83,0.00024563,2]
[341610494,1731028232370,-198.6,0.0002492,2]
[341610495,1731028232380,-2028.64,0.0002492,2]
[341610496,1731028232389,-500.0,0.00024932,2]
[341610497,1731028232399,-1351.84659688,0.00024958,2]
[341610498,1731028232411,-217.98340312,0.00024958,2]
[341610499,1731028232420,-550.0,0.00025,2]
[341610500,1731028232431,-1593.25312158,0.00025,2]
[341610501,1731028232440,-156.84,0.00025031,2]
[341610502,1731028232456,-85.70660785,0.00025064,2]
[341610503,1731028232492,-914.29339215,0.00025064,2]
[341610504,1731028232501,-250.0,0.00025089,2]
[341610505,1731028232511,-176.0,0.00025115,2]
[341610506,1731028232521,-6405.93,0.00025115,2]
[341610507,1731028232531,-209.81,0.00025115,2]
[341610508,1731028232540,-163.74,0.00025116,2]
[341610509,1731028232550,-250.0,0.00025125,2]
[341610510,1731028232559,-526.23,0.00025142,2]
[341610512,1731028232569,-170.74,0.0002519,2]
[341610514,1731028232578,-250.0,0.00025205,2]
[341610516,1731028232588,-170.74,0.00025253,2]
[341610518,1731028232598,-170.74,0.00025316,2]
[341610520,1731028232608,-1569.83,0.00025353,2]
[341610522,1731028232617,-157.26,0.00025378,30]
[341610524,1731028232627,-170.74,0.00025379,2]
[341610526,1731028232636,-9242.08407276,0.00025429,2]
[341610529,1731028232652,-297.05303692,0.00025429,2]
[341610531,1731028232664,-14360.86289032,0.00025429,2]
[341610533,1731028232673,-170.74,0.00025442,2]
[341610535,1731028232683,-612.88,0.00025592,120]
[341610537,1731028232693,-61.67707768,0.00025747,2]
[341610540,1731028232719,-1508.15292232,0.00025747,2]
[341610542,1731028232728,-35659.66464217,0.0002581,2]
[341610544,1731028232740,-10591.32714418,0.0002581,2]
[341610545,1731028232750,-1077.56,0.0002582,2]
[341610546,1731028232759,-201.28,0.00025875,2]
[341610547,1731028232769,-154.14,0.00026104,2]
[341610548,1731028232778,-1569.83,0.00026142,2]
[341610549,1731028232788,-500.0,0.00026164,7]
[341610550,1731028232798,-500.0,0.00026164,7]
[341610551,1731028232807,-500.0,0.00026164,7]
[341610552,1731028232816,-198.85,0.00026369,2]
[341610553,1731028232826,-1569.83,0.00026537,2]
[341610554,1731028232836,-1569.83,0.00026931,2]
[341610555,1731028232845,-600.0,0.00027,2]
[341610556,1731028232856,-361.9,0.00027123,2]
[341610557,1731028232865,-361.9,0.00027123,2]
[341610558,1731028232875,-361.9,0.00027123,2]
[341610559,1731028232884,-361.9,0.00027123,2]
[341610560,1731028232894,-361.9,0.00027123,2]
[341610561,1731028232903,-361.9,0.00027123,2]
[341610562,1731028232913,-876.98,0.00027123,2]
[341610563,1731028232922,-432.7,0.00027123,2]
[341610564,1731028232933,-432.7,0.00027123,2]
[341610565,1731028232942,-329.1026,0.00027197,2]
[341610566,1731028232955,-1881.0573,0.00027197,2]
[341610567,1731028232965,-1000.0,0.00027197,2]
[341610568,1731028232974,-24.52258424,0.00027197,2]
[341610570,1731028238233,-509.16789362,0.00027197,2]
[341610572,1731028238245,-2242.92142214,0.00027197,2]
[341610573,1731028238254,-4258.96817485,0.00027297,2]
[341610574,1731028238293,-618.74932003,0.00027297,2]
[341610575,1731028238304,-366.47550503,0.00027297,2]
[341610576,1731028238360,-8813.27530009,0.00027297,2]
[341610577,1731028238370,-448.24630539,0.00027297,2]
[341610578,1731028238381,-2067.21978566,0.00027297,2]
[341610579,1731028238392,-12344.438085,0.00027297,2]
[341610580,1731028238422,-1019.83248483,0.00027297,2]
[341610581,1731028238551,-10465.87597621,0.00027297,2]
[341610582,1731028238566,-12612.22208144,0.00027297,2]
[341610583,1731028238578,-639.20176105,0.00027297,2]
[341610587,1731028240482,-649.7377,0.00027242,2]
[341610588,1731028240492,-1336.60722326,0.00027297,2]
[341610589,1731028240503,-476.45777715,0.00027297,2]
[341610590,1731028240515,-548.54333457,0.00027297,2]
[341610591,1731028240586,-511.62360712,0.00027297,2]
[341610592,1731028240598,-22247.65917832,0.00027297,2]
[341610593,1731028240608,-156.860961,0.00027297,2]
[341610594,1731028240618,-308.8606339,0.00027297,2]
[341610595,1731028240627,-1569.83,0.00027326,2]
[341610596,1731028240638,-1111.17135198,0.00027342,2]
[341610597,1731028240647,-1090.84004601,0.00027342,2]
[341610598,1731028240657,-150.110806,0.00027348,4]
[341610599,1731028240667,-273.56830616,0.00027373,2]
[341610600,1731028240676,-500.0,0.00027373,2]
[341610601,1731028240686,-500.0,0.00027396,2]
[341610602,1731028240696,-500.0,0.00027396,2]
[341610603,1731028240707,-500.0,0.00027396,2]
[341610604,1731028240717,-500.0,0.00027396,2]
[341610605,1731028240727,-332.36889185,0.00027396,2]
[341610606,1731028240737,-1000.0,0.00027396,2]
[341610607,1731028240747,-500.0,0.00027397,2]
[341610608,1731028240757,-500.0,0.00027397,2]
[341610609,1731028240766,-605.16,0.00027397,2]
[341610610,1731028240776,-154.05695905,0.00027397,2]
[341610611,1731028240785,-500.0,0.00027397,2]
[341610612,1731028240794,-500.0,0.00027397,2]
[341610613,1731028240803,-605.90026438,0.00027397,2]
[341610614,1731028240813,-500.0,0.00027397,2]
[341610615,1731028240822,-500.0,0.00027397,2]
[341610616,1731028240831,-500.0,0.00027397,2]
[341610617,1731028240840,-500.0,0.00027397,2]
[341610618,1731028240849,-294.56965311,0.00027397,2]
[341610619,1731028240858,-500.0,0.00027397,2]
[341610620,1731028240867,-500.0,0.00027397,2]
[341610621,1731028240877,-500.0,0.00027397,2]
[341610622,1731028240886,-500.0,0.00027397,2]
[341610623,1731028240896,-500.0,0.00027397,2]
[341610624,1731028240905,-500.0,0.00027397,2]
[341610625,1731028240915,-500.0,0.00027397,2]
[341610626,1731028240924,-570.58,0.00027397,2]
[341610627,1731028240934,-500.0,0.00027397,2]
[341610628,1731028240943,-500.8620059,0.00027397,2]
[341610629,1731028240959,-500.0,0.00027397,2]
[341610630,1731028240968,-500.0,0.00027397,2]
[341610631,1731028240978,-500.0,0.00027397,2]
[341610632,1731028240987,-500.0,0.00027397,2]
[341610633,1731028240997,-1403.88,0.00027397,2]
[341610634,1731028241007,-500.0,0.00027397,2]
[341610635,1731028241017,-500.0,0.00027397,2]
[341610636,1731028241026,-500.0,0.00027397,2]
[341610637,1731028241037,-630.16,0.00027397,2]
[341610638,1731028241047,-500.0,0.00027397,2]
[341610639,1731028241057,-500.0,0.00027397,2]
[341610640,1731028241066,-540.24,0.00027397,2]
[341610641,1731028241076,-500.0,0.00027397,2]
[341610642,1731028241086,-500.0,0.00027397,2]
[341610643,1731028241096,-500.0,0.00027397,2]
[341610644,1731028241106,-519.14,0.00027397,2]
[341610645,1731028241117,-562.27,0.00027397,2]
[341610646,1731028241127,-500.0,0.00027397,2]
[341610647,1731028241137,-480.17392203,0.00027397,2]
[341610648,1731028241146,-500.0,0.00027397,2]
[341610649,1731028241156,-500.0,0.00027397,2]
[341610650,1731028241165,-500.0,0.00027397,2]
[341610651,1731028241175,-502.22,0.00027397,2]
[341610652,1731028241185,-500.0,0.00027397,2]
[341610653,1731028241195,-335.83743196,0.00027397,2]
[341610654,1731028241207,-500.0,0.00027397,2]
[341610655,1731028241217,-662.02,0.00027397,2]
[341610656,1731028241226,-500.0,0.00027397,2]
[341610657,1731028241236,-500.0,0.00027397,2]
[341610658,1731028241245,-500.0,0.00027397,2]
[341610659,1731028241255,-579.61654822,0.00027397,2]
[341610660,1731028241264,-500.0,0.00027397,2]
[341610661,1731028241274,-500.0,0.00027397,2]
[341610662,1731028241283,-500.0,0.00027397,2]
[341610663,1731028241293,-1095.29,0.00027397,2]
[341610664,1731028241303,-936.49,0.00027397,2]
[341610665,1731028241312,-500.0,0.00027397,2]
[341610666,1731028241321,-1000.72,0.00027397,2]
[341610667,1731028241331,-500.0,0.00027397,2]
[341610668,1731028241339,-500.0,0.00027397,2]
[341610669,1731028241348,-603.47,0.00027397,2]
[341610670,1731028241358,-500.0,0.00027397,2]
[341610671,1731028241368,-500.0,0.00027397,2]
[341610672,1731028241377,-845.76,0.00027397,2]
[341610673,1731028241387,-500.0,0.00027397,2]
[341610674,1731028241396,-500.0,0.00027397,2]
[341610675,1731028241405,-500.0,0.00027397,2]
[341610676,1731028241414,-500.0,0.00027397,2]
[341610677,1731028241424,-500.0,0.00027397,2]
[341610678,1731028241433,-500.0,0.00027397,2]
[341610679,1731028241442,-500.0,0.00027397,2]
[341610680,1731028241451,-500.0,0.00027397,2]
[341610681,1731028241460,-500.0,0.00027397,2]
[341610682,1731028241469,-501.32072636,0.00027397,2]
[341610683,1731028241479,-534.17,0.00027397,2]
[341610684,1731028241488,-2232.83,0.00027397,2]
[341610685,1731028241497,-500.0,0.00027397,2]
[341610686,1731028241506,-1196.03,0.00027397,2]
[341610687,1731028241517,-500.0,0.00027397,2]
[341610688,1731028241528,-500.0,0.00027397,2]
[341610689,1731028241538,-500.0,0.00027397,2]
[341610690,1731028241548,-579.38,0.00027397,2]
[341610691,1731028241557,-606.72,0.00027397,2]
[341610692,1731028241567,-500.0,0.00027397,2]
[341610693,1731028241577,-500.0,0.00027397,2]
[341610694,1731028241587,-500.0,0.00027397,2]
[341610695,1731028241596,-500.0,0.00027397,2]
[341610696,1731028241606,-500.0,0.00027397,2]
[341610697,1731028241615,-500.0,0.00027397,2]
[341610698,1731028241625,-500.0,0.00027397,2]
[341610699,1731028241636,-500.0,0.00027397,2]
[341610700,1731028241645,-500.0,0.00027397,2]
[341610701,1731028241655,-500.0,0.00027397,2]
[341610702,1731028241664,-500.0,0.00027397,2]
[341610703,1731028241674,-500.0,0.00027397,2]
[341610704,1731028241683,-572.73,0.00027397,2]
[341610705,1731028241693,-500.0,0.00027397,2]
[341610706,1731028241705,-500.0,0.00027397,2]
[341610707,1731028241715,-525.67,0.00027397,2]
[341610708,1731028241724,-547.09,0.00027397,2]
[341610709,1731028241734,-500.0,0.00027397,2]
[341610710,1731028241743,-500.0,0.00027397,2]
[341610711,1731028241753,-500.0,0.00027397,2]
[341610712,1731028241763,-500.0,0.00027397,2]
[341610713,1731028241772,-500.0,0.00027397,2]
[341610714,1731028241782,-500.0,0.00027397,2]
[341610715,1731028241792,-640.64,0.00027397,2]
[341610716,1731028241801,-490.05,0.00027397,2]
[341610717,1731028241811,-500.0,0.00027397,2]
[341610718,1731028241820,-530.14,0.00027397,2]
[341610719,1731028241830,-500.56,0.00027397,2]
[341610720,1731028241840,-500.0,0.00027397,2]
[341610721,1731028241849,-500.0,0.00027397,2]
[341610722,1731028241859,-1167.69,0.00027397,2]
[341610723,1731028241869,-500.0,0.00027397,2]
[341610724,1731028241879,-500.0,0.00027397,2]
[341610725,1731028241888,-500.0,0.00027397,2]
[341610726,1731028241898,-738.67,0.00027397,2]
[341610727,1731028241907,-888.75,0.00027397,2]
[341610728,1731028241917,-500.0,0.00027397,2]
[341610729,1731028241927,-500.0,0.00027397,2]
[341610730,1731028241936,-577.18,0.00027397,2]
[341610731,1731028241945,-500.0,0.00027397,2]
[341610732,1731028241957,-500.0,0.00027397,2]
[341610733,1731028241966,-500.0,0.00027397,2]
[341610734,1731028241975,-500.0,0.00027397,2]
[341610735,1731028241984,-500.0,0.00027397,2]
[341610736,1731028241993,-500.0,0.00027397,2]
[341610737,1731028242003,-500.0,0.00027397,2]
[341610738,1731028242012,-500.0,0.00027397,2]
[341610739,1731028242021,-500.0,0.00027397,2]
[341610740,1731028242031,-500.0,0.00027397,2]
[341610741,1731028242044,-1052.12,0.00027397,2]
[341610742,1731028242054,-500.0,0.00027397,2]
[341610743,1731028242063,-500.0,0.00027397,2]
[341610744,1731028242073,-500.0,0.00027397,2]
[341610745,1731028242083,-684.93,0.00027397,2]
[341610746,1731028242092,-500.0,0.00027397,2]
[341610747,1731028242102,-500.0,0.00027397,2]
[341610748,1731028242111,-500.0,0.00027397,2]
[341610749,1731028242121,-1052.59,0.00027397,2]
[341610750,1731028242132,-500.0,0.00027397,2]
[341610751,1731028242141,-500.0,0.00027397,2]
[341610752,1731028242151,-287.43546565,0.00027397,2]
[341610753,1731028242161,-629.4,0.00027397,2]
[341610754,1731028242170,-500.0,0.00027397,2]
[341610755,1731028242180,-500.0,0.00027397,2]
[341610756,1731028242190,-500.0,0.00027397,2]
[341610757,1731028242201,-500.0,0.00027397,2]
[341610758,1731028242211,-500.0,0.00027397,2]
[341610759,1731028242220,-500.0,0.00027397,2]
[341610760,1731028242230,-500.0,0.00027397,2]
[341610761,1731028242239,-792.02,0.00027397,2]
[341610762,1731028242249,-500.0,0.00027397,2]
[341610763,1731028242259,-500.0,0.00027397,2]
[341610764,1731028242269,-500.0,0.00027397,2]
[341610765,1731028242279,-500.0,0.00027397,2]
[341610766,1731028242289,-500.0,0.00027397,2]
[341610767,1731028242299,-654.05,0.00027397,2]
[341610768,1731028242308,-500.0,0.00027397,2]
[341610769,1731028242318,-500.0,0.00027397,2]
[341610770,1731028242327,-500.0,0.00027397,2]
[341610771,1731028242337,-500.0,0.00027397,2]
[341610772,1731028242347,-545.6,0.00027397,2]
[341610773,1731028242356,-500.0,0.00027397,2]
[341610774,1731028242365,-230.97,0.00027397,2]
[341610775,1731028242375,-500.0,0.00027397,2]
[341610776,1731028242384,-578.94,0.00027397,2]
[341610777,1731028242393,-500.0,0.00027397,2]
[341610778,1731028242403,-500.0,0.00027397,2]
[341610779,1731028242413,-500.0,0.00027397,2]
[341610780,1731028242423,-779.68,0.00027397,2]
[341610781,1731028242432,-500.0,0.00027397,2]
[341610782,1731028242442,-500.0,0.00027397,2]
[341610783,1731028242451,-695.87,0.00027397,2]
[341610784,1731028242461,-500.0,0.00027397,2]
[341610785,1731028242470,-500.0,0.00027397,2]
[341610786,1731028242480,-500.0,0.00027397,2]
[341610787,1731028242490,-500.0,0.00027397,2]
[341610788,1731028242499,-500.0,0.00027397,2]
[341610789,1731028242509,-500.0,0.00027397,2]
[341610790,1731028242520,-968.16,0.00027397,2]
[341610791,1731028242530,-500.0,0.00027397,2]
[341610792,1731028242540,-500.0,0.00027397,2]
[341610793,1731028242550,-500.0,0.00027397,2]
[341610794,1731028242560,-500.0,0.00027397,2]
[341610795,1731028242569,-223.57751845,0.00027397,2]
[341610796,1731028242579,-500.0,0.00027397,2]
[341610797,1731028242589,-500.0,0.00027397,2]
[341610798,1731028242599,-500.0,0.00027397,2]
[341610799,1731028242608,-500.0,0.00027397,2]
[341610800,1731028242618,-500.0,0.00027397,2]
[341610801,1731028242627,-500.0,0.00027397,2]
[341610802,1731028242637,-500.0,0.00027397,2]
[341610803,1731028242647,-521.44,0.00027397,2]
[341610804,1731028242656,-500.0,0.00027397,2]
[341610805,1731028242665,-581.66561698,0.00027397,2]
[341610806,1731028242675,-500.0,0.00027397,2]
[341610807,1731028242684,-500.0,0.00027397,2]
[341610808,1731028242693,-572.63,0.00027397,2]
[341610809,1731028242704,-500.0,0.00027397,2]
[341610810,1731028242713,-500.0,0.00027397,2]
[341610811,1731028242723,-500.0,0.00027397,2]
[341610812,1731028242732,-500.0,0.00027397,2]
[341610813,1731028242742,-500.0,0.00027397,2]
[341610814,1731028242752,-500.0,0.00027397,2]
[341610815,1731028242761,-509.73592304,0.00027397,2]
[341610816,1731028242771,-129.69001388,0.00027397,2]
[341610817,1731028242816,-370.30998612,0.00027397,2]
[341610818,1731028242826,-500.0,0.00027397,2]
[341610819,1731028242835,-357.65001348,0.00027397,2]
[341610820,1731028242847,-400.075,0.00027397,2]
[341610821,1731028242919,-85.98498652,0.00027397,2]
[341610822,1731028242928,-500.0,0.00027397,2]
[341610823,1731028242937,-30.90823205,0.00027397,2]
[341610824,1731028242948,-469.09176795,0.00027397,2]
[341610825,1731028242959,-500.0,0.00027397,2]
[341610826,1731028242968,-192.83675318,0.00027397,2]
[341610827,1731028242979,-307.16324682,0.00027397,2]
[341610828,1731028242988,-574.91,0.00027397,2]
[341610829,1731028242997,-300.0,0.00027397,2]
[341610830,1731028243007,-500.0,0.00027397,2]
[341610831,1731028243016,-500.0,0.00027397,2]
[341610832,1731028243026,-500.0,0.00027397,2]
[341610833,1731028243036,-280.5695996,0.00027397,2]
[341610834,1731028243079,-393.2804004,0.00027397,2]
[341610835,1731028243088,-30.31796734,0.00027397,2]
[341610836,1731028243104,-469.68203266,0.00027397,2]
[341610837,1731028243114,-1083.77,0.00027397,2]
[341610838,1731028243123,-168.11858747,0.00027397,2]
[341610839,1731028243132,-573.2,0.00027397,2]
[341610840,1731028243142,-500.0,0.00027397,2]
[341610841,1731028243151,-500.0,0.00027397,2]
[341610842,1731028243161,-500.0,0.00027397,2]
[341610843,1731028243171,-500.0,0.00027397,2]
[341610844,1731028243180,-544.2,0.00027397,2]
[341610845,1731028243190,-500.0,0.00027397,2]
[341610846,1731028243199,-571.31,0.00027397,2]
[341610847,1731028243209,-625.09,0.00027397,2]
[341610848,1731028243218,-500.0,0.00027397,2]
[341610849,1731028243228,-568.93,0.00027397,2]
[341610850,1731028243237,-500.0,0.00027397,2]
[341610851,1731028243246,-500.0,0.00027397,2]
[341610852,1731028243256,-500.0,0.00027397,2]